Cogmind - Beta 14 @@@ ROGUE MODE // 2024.10.19 @ 22:44:46 Player: WazdakkaGutsmek Result: Destroyed by S-10 Pest with Light Assault Rifle Performance ------------- Evolutions (0) 0 Regions Visited (4) 800 Robots Destroyed (33) 165 Value Destroyed (585) 585 Prototype IDs (23) 460 Alien Tech Used (0) 0 Bonus (300) 300 TOTAL SCORE: 2310 Bonus ------- Aligned with FarCom 300 Cogmind --------- Core Integrity 0/250 Matter 265/300 Energy 146/250 System Corruption 0% Temperature Cool (0) Movement Treading (320) Ox2 Location -9/Mines Parts ------- > --- POWER (1) -------- Ion Engine > --- PROPULSION (2) --- Light Treads Light Treads > --- UTILITY (2) ------ Improved Heat Sink Huge Storage Unit > --- WEAPON (2) ------- YOLO Cannon > --- INVENTORY (25) --- Ion Engine Light Ion Engine Wheel Compact Wheel Small Storage Unit High-capacity Matter Pod (200) Light Assault Rifle Datajack Peak State ------------ > --- POWER ------------ Ion Engine > --- PROPULSION ------- Light Treads Light Treads > --- UTILITY ---------- Improved Heat Sink Huge Storage Unit > --- WEAPON ----------- YOLO Cannon > --- INVENTORY -------- Ion Engine Light Ion Engine Wheel Compact Wheel Small Storage Unit High-capacity Matter Pod Light Assault Rifle Datajack [Rating: 27] Favorites ----------- Power Ion Engine Engine Ion Engine Propulsion Light Treads Treads Light Treads Leg Aluminum Leg Wheel Wheel Utility Huge Storage Unit Device Improved Terrain Scanner Storage Huge Storage Unit Weapon Light Assault Rifle Energy Gun Medium Laser Energy Cannon YOLO Cannon Ballistic Gun Light Assault Rifle Ballistic Cannon Light Cannon Build | -11 -10 -10 -10 -9 ------- Run | Yrd Mat Min Exi Min Slots Evolved . | . . . . . Power . | . . . . . Propulsion . | . . . . . Utility . | . . . . . Weapon . | . . . . . Parts Attached 16 | 2 3 8 3 . Power 2 | . . 1 1 . Engine 2 | . . 1 1 . Core . | . . . . . Reactor . | . . . . . Propulsion 6 | . 2 4 . . Treads 2 | . . 2 . . Leg . | . . . . . Wheel 4 | . 2 2 . . Hover . | . . . . . Flight . | . . . . . Utility 5 | 2 1 1 1 . Device 4 | 2 . 1 1 . Storage 1 | . 1 . . . Processor . | . . . . . Hackware . | . . . . . Protection . | . . . . . Artifact . | . . . . . Weapon 3 | . . 2 1 . Energy Gun . | . . . . . Energy Cannon 1 | . . . 1 . Ballistic Gun 1 | . . 1 . . Ballistic Cannon 1 | . . 1 . . Launcher . | . . . . . Special Weapon . | . . . . . Impact Weapon . | . . . . . Slashing Weapon . | . . . . . Piercing Weapon . | . . . . . Special Melee Weapon . | . . . . . Unidentified Prototypes . | . . . . . Parts Lost 4 | . . 4 . . Power 1 | . . 1 . . Propulsion 1 | . . 1 . . Utility 1 | . . 1 . . Weapon 1 | . . 1 . . Highest Loss Streak 2 | . . 2 . . To Critical Strikes . | . . . . . Average Slot Usage (%) 88 | . 100 83 85 85 Engine 11 | . 14 8 14 14 Treads 16 | . . 18 28 28 Leg 1 | . 6 . . . Wheel 9 | . 21 9 . . Device 8 | . 14 4 6 14 Storage 14 | . 14 14 14 14 Energy Gun 5 | . 14 4 . . Energy Cannon 2 | . . . 6 14 Ballistic Gun 12 | . 14 15 7 . Ballistic Cannon 5 | . . 8 7 . Peak Build Rating 27 | 9 9 10 27 27 Average Rating 11 | 7 8 7 16 27 On Entrance 11 | 6 9 9 6 27 Naked Turns . | . . . . . Heaviest Build 104 | 14 89 89 104 104 Greatest Support 40 | 20 26 40 40 40 Greatest Overweight (x) 5 | . 3 5 2 2 Average Overweight (x) 2 | . 2 2 2 2 Largest Inventory Capacity 25 | 8 25 25 25 25 Average Capacity 23 | 8 21 25 25 25 Most Carried 11 | 6 7 10 11 8 Average Carried 8 | 6 6 9 8 8 Final Capacity 25 | 8 25 25 25 25 Final Carried 10 | 6 7 10 8 8 Class Distribution -------------------- 96% | Mutant 3% | Scavenger-Mutant Dominant Class ---------------- Mutant | -10/Materials Mutant | -10/Mines Mutant | -10/Exiles Mutant | -9/Mines Resources | -11 -10 -10 -10 -9 ----------- Run | Yrd Mat Min Exi Min Matter Collected 485 | 208 69 208 . . Remotely . | . . . . . Salvage Created 969 | 136 238 510 . 85 Parts 67 | 9 20 35 . 3 Haulers Intercepted 1 | . 1 . . . Recyclers Shooed 2 | . 1 1 . . Parts Field Recycled . | . . . . . Retrieved Matter . | . . . . . Parts Self-Destructed . | . . . . . Prevented . | . . . . . Kills | -11 -10 -10 -10 -9 ------- Run | Yrd Mat Min Exi Min Combat Hostiles Destroyed 23 | . 7 14 . 2 Guns 15 | . 7 8 . . Cannons 7 | . . 6 . 1 AOE 1 | . . . . 1 Classes Destroyed 7 | 2 4 1 . . Builder 2 | . . 1 . 1 Tunneler 3 | 2 . 1 . . Hauler 1 | . 1 . . . Recycler 2 | 1 . 1 . . Watcher 2 | . 2 . . . Swarmer 14 | . 6 8 . . Grunt 9 | . 1 6 . 2 Best Kill Streak 5 | 3 4 5 . 3 Combat Bots Only 3 | . 3 3 . 2 Max Kills in Single Turn 1 | 1 1 1 . 1 Gunslinging . | . . . . . Exploded 1 | . . . . 1 Melee . | . . . . . Uniques/NPCs Destroyed . | . . . . . Combat | -11 -10 -10 -10 -9 -------- Run | Yrd Mat Min Exi Min Hostile Shots Fired 148 | . 47 88 . 13 Missed 45 | . 14 26 . 5 Damage Taken 983 | . 270 630 . 83 Core 250 | . 107 127 . 16 Absorbed by Shields . | . . . . . Core Remaining (%) 100 | 100 . . . . Volleys Fired 93 | 13 28 47 . 5 Largest 2 | 2 2 2 . 1 Hottest 100 | 70 70 70 . 100 Shots Fired 180 | 26 56 93 . 5 Gun 154 | 26 56 72 . . Cannon 26 | . . 21 . 5 Launcher . | . . . . . Special . | . . . . . Kinetic 110 | 13 28 69 . . Thermal 70 | 13 28 24 . 5 Explosive . | . . . . . Electromagnetic . | . . . . . Robot Hit Streak 15 | 9 10 15 . 1 Robot Miss Streak 4 | 3 4 3 . 2 Penetration Max . | . . . . . Secondary Targets 3 | . 1 2 . . Max Gunslinging Chain 1 | . 1 1 . . Shots Hit Robots 110 | 18 29 62 . 1 Core Hits 57 | 6 15 34 . 2 Critical Kills . | . . . . . Critical Parts Destroyed . | . . . . . Critical Strikes 3 | . 2 1 . . Burn 3 | . 2 1 . . Melee Attacks . | . . . . . Impact . | . . . . . Slashing . | . . . . . Piercing . | . . . . . Sneak Attacks . | . . . . . Combat Hostiles . | . . . . . Follow-up Attacks . | . . . . . Damage Inflicted 1603 | 189 309 744 . 361 Guns 1028 | 189 309 530 . . Cannons 364 | . . 214 . 150 Explosions 211 | . . . . 211 Melee . | . . . . . Ramming . | . . . . . Kinetic 670 | 78 112 480 . . Thermal 933 | 111 197 264 . 361 Explosive . | . . . . . Electromagnetic . | . . . . . Impact . | . . . . . Slashing . | . . . . . Piercing . | . . . . . Highest Corruption . | . . . . . Average Corruption . | . . . . . Corruption Purged . | . . . . . Corruption Blocked . | . . . . . Overload Shots . | . . . . . Overflow Damage 126 | . . . . 126 Projectiles 111 | . . . . 111 Explosions 15 | . . . . 15 Melee . | . . . . . Knockbacks 1 | . . 1 . . Impact . | . . . . . Kinetic 1 | . . 1 . . Secondary . | . . . . . Self-Inflicted Damage . | . . . . . Shots . | . . . . . Rammed . | . . . . . Targets Rammed . | . . . . . Kicked . | . . . . . Crushed . | . . . . . Highest Temperature 199 | 90 150 199 . . Average Temperature 56 | 45 59 58 . . Received Heat Transfer 312 | . 24 264 . 24 Siege Activations . | . . . . . Robots Corrupted . | . . . . . Combat Hostiles . | . . . . . Parts Fried . | . . . . . Impact Corruptions . | . . . . . Robots Melted . | . . . . . Combat Hostiles . | . . . . . Parts Melted 6 | . 2 4 . . Heat Transferred 2244 | 333 740 851 . 320 Parts Sabotaged . | . . . . . Parts Stolen . | . . . . . Parts Stripped . | . . . . . Power Chain Reactions . | . . . . . Alert | -11 -10 -10 -10 -9 ------- Run | Yrd Mat Min Exi Min Peak Influence 175 | 15 175 149 . 106 Initial 9 | . 9 9 . . Average 35 | 12 60 31 . 6 Maximum Alert Level . | . . . . . Low Security (%) 100 | 100 100 100 . 100 Level 1 . | . . . . . Level 2 . | . . . . . Level 3 . | . . . . . Level 4 . | . . . . . Level 5 . | . . . . . High Security . | . . . . . Max Security . | . . . . . Squads Dispatched 2 | . 2 . . . Investigation 2 | . 2 . . . Extermination . | . . . . . Reinforcement . | . . . . . Assault . | . . . . . Garrison . | . . . . . Intercept . | . . . . . Searches Triggered . | . . . . . Construction Impeded . | . . . . . Haulers Reinforced . | . . . . . Active Scanning Responses . | . . . . . Cargo Convoy Interrupts . | . . . . . Stealth | -11 -10 -10 -10 -9 --------- Run | Yrd Mat Min Exi Min Distress Signals 1 | . 1 . . . Communications Jammed . | . . . . . Distress Signals . | . . . . . Times Spotted 29 | . 10 15 . 4 Peak Tracking Total 5 | . 5 3 . 3 Tactical Retreats 2 | . . 2 . . Traps | -11 -10 -10 -10 -9 ------- Run | Yrd Mat Min Exi Min Traps Triggered . | . . . . . Indirectly . | . . . . . Trap Hack Attempts . | . . . . . Triggered . | . . . . . Disarmed . | . . . . . Reprogrammed . | . . . . . Reused . | . . . . . Traps Extracted . | . . . . . Installed . | . . . . . Triggered . | . . . . . Machines | -11 -10 -10 -10 -9 ---------- Run | Yrd Mat Min Exi Min Machines Disabled 1 | . . . . 1 Max in Single Turn 1 | . . . . 1 Machines Repaired . | . . . . . Machines Dismantled . | . . . . . Machines Sabotaged . | . . . . . Overloaded Fab Kills . | . . . . . Hacking | -11 -10 -10 -10 -9 --------- Run | Yrd Mat Min Exi Min Machines Accessed 8 | . 7 . 1 . Terminals 5 | . 5 . . . Fabricators . | . . . . . Repair Stations . | . . . . . Recycling Units 2 | . 2 . . . Scanalyzers . | . . . . . Garrison Access . | . . . . . Total Hacks 18 | . 17 . 1 . Successful 13 | . 12 . 1 . Failed 5 | . 5 . . . Catastrophic . | . . . . . Database Lockouts . | . . . . . Manual 15 | . 14 . 1 . Terminals 13 | . 13 . . . Fabricators . | . . . . . Repair Stations . | . . . . . Recycling Units 4 | . 4 . . . Scanalyzers . | . . . . . Garrison Access . | . . . . . Terminal Hacks 3 | . 2 . 1 . Surveillance Status 1 | . 1 . . . Zone Layout 1 | . 1 . . . Derelict Proto ID Bank 1 | . . . 1 . Fabricator Hacks . | . . . . . Repair Station Hacks . | . . . . . Recycling Unit Hacks . | . . . . . Scanalyzer . | . . . . . Garrison Access Hacks . | . . . . . Unauthorized Hacks 10 | . 10 . . . Terminals 8 | . 8 . . . Botnet 3 | . 3 . . . Skim 5 | . 5 . . . Fabricators . | . . . . . Repair Stations . | . . . . . Recycling Units 2 | . 2 . . . Tunnel 2 | . 2 . . . Scanalyzers . | . . . . . Garrison Access . | . . . . . Data Cores Recovered . | . . . . . Used . | . . . . . Hacking Detections 4 | . 4 . . . Full Trace Events . | . . . . . Feedback Events . | . . . . . Feedback Blocked . | . . . . . Robot Schematics Acquired . | . . . . . Robots Built . | . . . . . Authchips . | . . . . . Time . | . . . . . Total Robot Build Rating . | . . . . . Part Schematics Acquired . | . . . . . Parts Built . | . . . . . Authchips . | . . . . . Time . | . . . . . Total Part Build Rating . | . . . . . Parts Repaired . | . . . . . Time . | . . . . . Parts Recycled . | . . . . . Recycled Matter . | . . . . . Retrieved Matter . | . . . . . Retrieved Components . | . . . . . Parts Scanalyzed . | . . . . . Part Schematics Acquired . | . . . . . Parts Damaged . | . . . . . Bothacking | -11 -10 -10 -10 -9 ------------ Run | Yrd Mat Min Exi Min Used RIF Installer . | . . . . . Robots Hacked . | . . . . . Non-combat . | . . . . . Combat . | . . . . . Robot Hacks Applied . | . . . . . Relay Couplers Released . | . . . . . Fabnet Peak Effective % . | . . . . . Robots Rewired . | . . . . . Allies Hacked . | . . . . . Hacks Repelled . | . . . . . Allies | -11 -10 -10 -10 -9 -------- Run | Yrd Mat Min Exi Min Total Allies . | . . . . . Largest Group . | . . . . . Highest-Rated Group . | . . . . . Highest-Rated Ally . | . . . . . Total Orders . | . . . . . Ally Attacks . | . . . . . Total Damage . | . . . . . Kills . | . . . . . Allies Corrupted . | . . . . . Allies Melted . | . . . . . Intel | -11 -10 -10 -10 -9 ------- Run | Yrd Mat Min Exi Min Robot Analysis Total . | . . . . . Derelict Logs Recovered 3 | . . 3 . . Drone Launches . | . . . . . Drone Recoveries . | . . . . . Exploration | -11 -10 -10 -10 -9 ------------- Run | Yrd Mat Min Exi Min Turns Passed 3928 | 167 948 1747 697 369 Spaces Moved 1353 | 27 388 670 217 51 Core . | . . . . . Treads 603 | . . 335 217 51 Legs 91 | 27 64 . . . Wheels 659 | . 324 335 . . Hover . | . . . . . Flight . | . . . . . Fastest Speed 120 | 120 120 135 320 320 Average Speed 216 | 120 132 228 320 320 Slowest Speed 320 | 120 135 320 320 320 Overloaded Moves . | . . . . . Propulsion Burnouts . | . . . . . Robots Hopped . | . . . . . Cave-ins Triggered . | . . . . . Exploration Rate (%) 43 | 3 44 96 61 13 Regions Visited 4 Branch Regions 3 Pre-discovered Areas 2 | . 2 . . . Known Exits Taken 2 | . 1 . 1 . Unknown Exits Taken 2 | 1 . 1 . . Scrap Searched 1 | . . 1 . . Spaces Dug . | . . . . . Terrain Destroyed 74 | . . . . 74 Melee . | . . . . . Projectile 4 | . . . . 4 AOE 70 | . . . . 70 Terrain Rammed . | . . . . . Walls Destroyed . | . . . . . Machines Disabled . | . . . . . Actions | -11 -10 -10 -10 -9 --------- Run | Yrd Mat Min Exi Min Total 2180 | 137 772 804 222 245 Wait 706 | 95 350 72 . 189 Move 1349 | 26 387 669 216 51 Hop . | . . . . . Pick Up 8 | . 2 5 1 . Fast Attach 2 | 2 . . . . Attach 9 | . 2 4 3 . Detach . | . . . . . Swap 5 | . 1 4 . . Drop 8 | 1 2 3 2 . Fire 93 | 13 28 47 . 5 Melee . | . . . . . Ram . | . . . . . Kick . | . . . . . Crush . | . . . . . Escape Stasis . | . . . . . Rewire . | . . . . . Trap . | . . . . . Miscellaneous . | . . . . . Route ------- -11/Scrapyard -10/Materials (discovered 4 exits: Mat / *Min x2 / Sub) -10/Mines (discovered 4 exits: *Mat x2 / *Exi / *Sub) -10/Exiles (discovered 2 exits: *Min x2) -9/Mines (discovered 1 exit: Mat) History --------- Turn | Location | Event 1 | -11/Scrapyard | Discovered new exit (range 2) 168 | -11/Scrapyard | Entered Materials 302 | -10/Materials | Build established: Mutant 672 | -10/Materials | Learned 4 Recycling zone layouts 702 | -10/Materials | Identified exit to Mines 730 | -10/Materials | Learned 2 Storage zone layouts 731 | -10/Materials | Identified exit to Materials 731 | -10/Materials | Identified exit to Subcaves 737 | -10/Materials | Learned location of 1 exit from Recycling 753 | -10/Materials | Learned 2 Storage zone layouts 1116 | -10/Materials | Entered Mines 1244 | -10/Mines | Learned 2 Materials zone layouts 1458 | -10/Mines | Core integrity fell below 50% 1828 | -10/Mines | Core integrity fell below 20% 2489 | -10/Mines | Found a hidden stash of uninstalled traps 2707 | -10/Mines | Learned Materials garrison access intel 2723 | -10/Mines | Discovered exit to Subcaves (range 3) 2847 | -10/Mines | Deemed a non-threat by the Exiles lab entrance 2850 | -10/Mines | Discovered new exit (range 5) 2863 | -10/Mines | Entered Exiles 2864 | -10/Exiles | Identified exit to Mines 2944 | -10/Exiles | Met 8R-AWN 2996 | -10/Exiles | Met EX-HEX 3082 | -10/Exiles | Met EX-BIN 3120 | -10/Exiles | Aligned with FarCom system 3124 | -10/Exiles | Given EX-Vault access code 3197 | -10/Exiles | Opened EX-Vault 3213 | -10/Exiles | Found YOLO Cannon 3284 | -10/Exiles | Warned to stay clear of 0b10 Research branches 3374 | -10/Exiles | Met EX-DEC 3560 | -10/Exiles | Left Exiles lab with YOLO Cannon 3560 | -10/Exiles | Entered Mines 3561 | -9/Mines | Identified exit to Materials 3608 | -9/Mines | Met a Derelict bent on vengeance 3929 | -9/Mines | Destroyed by S-10 Pest with Light Assault Rifle Last Messages --------------- EX-DEC: Ah I see we have a visitor. One wrong move in here and I'll invert your atomic chain! 03376_ EX-DEC: "Oops, I hope HEX didn't hear that..." LOCATION=MINES GOAL=ESCAPE 03560_ Receiving FarCom transmissions... Loading 1 Materials entrance... 03668_ K-01 Serf collects debris. 03896_ C-30 ARC bursts open, deploying its payload. 03896_ G-34 Mercenary unfolds itself. 03902_ G-34 Mercenary destroyed. 03906_ Destroyed Aluminum Leg. 03906_ Destroyed Imp. Heat Sink. 03906_ G-47 Trooper destroyed. 03906_ Pulverizer disabled. 03925_ U-05 Engineer destroyed. 03925_ Destroyed Flight Unit. Map ----- +----------------------------------------------------+ | ????????????????????????????????????????? | | ????????????????????????????????????????? | | ????????????????????????????????????????? | | ????????????????????????????????????????? | | ????????????????????????????????????????? | | ????????????????????????????????????????? | | ????????????????????????????????????????? | | ????????????????????????????????????????? | | ????????????????????????????????????????? | | ????????????????????????????????????????? | | ????????????????????????????????????????? | | ????????????????????????????????????????? | | ????????????????????????????????????????? | | ?????????????????????????????#####??????? | | ????????????????????????????## ####???? | | ????????????????????????????# ##??? | | ???????????????????????????## """ #??? | | ?????????????####????####### """ #??? | | ??????????s?##;;;;???# """ #??? | | ???????????? s ;??# ##??? | | ????????????s ; ### ##???? | | ???????????;; % ##### ### #????? | | ???????????;;; ## #?# #????? | | ?????????? = ;;;; #?# #????? | | ?????????? ; % #?# ##???? | | ?????????? ; @ #?# #???? | | ???????????? " ; ;##?## #???? | | ???????????? "" ; ;#???#####???? | | ?????????????? """ ; # ##???????????? | | ?????????????? #### ## #????????????? | | ??????????????####????##?# #????????????? | | ?????????????????????????# #????????????? | | ?????????????????????????# #????????????? | | ?????????????????????????# #????????????? | | ?????????????????????????# #?????g?gg???? | | ?????????????????????????? ?????????????? | | ?????????????????????????? ?????????????? | | ?????????????????????????? ?????????????? | | ?????????????????????????? ?????????????? | | ?????????????????????????? ?????????????? | | ?????????????????????????? ?????????????? | | ????????????????????????????????????????? | | ????????????????????????????????????????? | | ????????????????????????????????????????? | | ????????????????????????????????????????? | | ????????????????????????????????????????? | | | | | | | | | +----------------------------------------------------+ Best States ------------- Heat Dissipation 39 Energy Generation 10 Energy Capacity 250 Matter Stores 300 Matter Capacity 300 Sight Range 16 Terrain Scan Range 16 Terrain Scan Density 10 Evasion (%) 55 Recoil Reduction 2 Item Schematics ----------------- None Robot Schematics ------------------ None Fabricated ------------ Nothing Alien Tech Used ----------------- None Achievements -------------- None Challenges ------------ None Game ------ Seed WeaponsScatterCyclogen Manual? 0 Play Time 00:13:32 Cumulative 44.2 hours Start 2024.10.19 @ 22:31:52 End 2024.10.19 @ 22:44:46 Sessions 1 Manual Loads 0 Difficulty Rogue Special Mode None Game No. 46 Rogue 28 Adventurer 16 Explorer 2 Win Type - Total 1 Types 1/0/0/0/0/0/0/0/0 Lore% 13 Gallery% 37 Achievement% 33 Wizard Run 0 Options --------- Layout 2 ASCII 0 Keyboard 0 Movement Mouse Keybinds 1 Fullscreen 2 Font 24/Terminus Map View 50x44 Zoom Use 0% Tactical HUD 1 Map Filters NONE Filters NONE Steam 1 RUN: 08663c14-031e-45ad-a875-2bf42f505aa4